[Event "EYCC G10-ch 2024"]
[Site "Prague"]
[Date "2024.08.24"]
[Round "3.2"]
[White "Kravchuk, Daria"]
[Black "Ahmadli, Mehriban"]
[Result "0-1"]
[ECO "B90"]
[WhiteElo "1597"]
[BlackElo "1646"]
[Annotator "NA RC"]
[PlyCount "140"]
[EventDate "2024.08.19"]
[EventType "swiss"]
[EventCountry "CZE"]
[SourceTitle "playchess.com"]
[Source "ChessBase"]
[SourceQuality "1"]
[TimeControl "5400+30"]

1. e4 {[%emt 0:00:31]} c5 {[%emt 0:00:30]} 2. Nf3 {[%emt 0:00:59]} d6 {[%emt 0:00:02]} 3. d4 {[%emt 0:00:45]} cxd4 {[%emt 0:00:01]} 4. Nxd4 {[%emt 0:00:09]} Nf6 {[%emt 0:00:01]} 5. Nc3 {[%emt 0:00:11]} a6 {[%emt 0:00:04]} 6. h3 {[%emt 0:00:11]} e5 {[%emt 0:00:33]} 7. Nde2 {[%emt 0:00:17]} b5 {[%emt 0:03:18]} 8. g4 {[%emt 0:03:05]} b4 {[%emt 0:06:03]} 9. Nd5 {[%emt 0:02:07]} Bb7 {[%emt 0:09:55]} 10. Bg2 {[%emt 0:02:17]} Bxd5 {[%emt 0:00:57]} 11. exd5 {[%emt 0:02:06]} Be7 {[%emt 0:02:54]} 12. a3 {[%emt 0:03:19]} bxa3 {[%emt 0:05:59]} 13. Rxa3 {[%emt 0:00:13]} h6 {[%emt 0:01:38]} 14. Be3 {[%emt 0:05:54]} Nbd7 {[%emt 0:00:46]} 15. Qd3 {[%emt 0:03:01]} Qc8 {[%emt 0:06:24]} 16. Rc3 {[%emt 0:06:27]} Qb7 {[%emt 0:01:27]} 17. O-O {[%emt 0:01:22]} O-O {[%emt 0:01:06]} 18. Ng3 {[%emt 0:01:52]} Rfc8 {[%emt 0:03:12]} 19. Nf5 {[%emt 0:01:22]} Rxc3 {[%emt 0:08:01]} 20. Qxc3 {[%emt 0:00:46]} Bf8 {[%emt 0:00:39]} 21. Qc6 {[%emt 0:02:09]} Qb8 {[%emt 0:09:52]} 22. b3 {[%emt 0:14:14]} Kh7 {[%emt 0:00:59]} 23. g5 {[%emt 0:10:45]} hxg5 {[%emt 0:00:25]} 24. Qc4 {[%emt 0:01:45]} Qb5 {[%emt 0:06:48]} 25. Qxb5 {[%emt 0:06:13]} axb5 {[%emt 0:00:02]} 26. Ng3 {[%emt 0:00:34]} g4 {[%emt 0:01:50]} 27. hxg4 {[%emt 0:01:33]} Nxg4 {[%emt 0:01:31]} 28. Be4+ {[%emt 0:00:27]} g6 {[%emt 0:00:47]} 29. Bd2 {[%emt 0:01:19]} Ra2 {[%emt 0:11:40]} 30. b4 {[%emt 0:03:27]} Ngf6 {[%emt 0:01:18]} 31. Kg2 {[%emt 0:06:07]} Nb6 {[%emt 0:04:40]} 32. Rh1+ {[%emt 0:00:46]} Kg8 {[%emt 0:00:21]} 33. Bg5 {[%emt 0:04:27]} Bg7 {[%emt 0:06:37]} 34. Bxf6 {[%emt 0:01:38]} Bxf6 {[%emt 0:00:01]} 35. Rd1 {[%emt 0:04:44]} Rb2 {[%emt 0:01:39]} 36. c3 {[%emt 0:02:54]} Nc4 {[%emt 0:00:27]} 37. Kg1 {[%emt 0:01:54]} Rb3 {[%emt 0:02:50]} 38. Rc1 {[%emt 0:00:59]} Bg5 {[%emt 0:00:10]} 39. Rc2 {[%emt 0:00:16]} Na3 {[%emt 0:00:17]} 40. Ra2 {[%emt 0:00:18]} Rxc3 {[%emt 0:01:07]} 41. Ne2 {[%emt 0:01:26]} Rb3 {[%emt 0:00:02]} 42. Kh1 {[%emt 0:02:15]} Rxb4 {[%emt 0:01:39]} 43. Bd3 {[%emt 0:02:40]} Rb3 {[%emt 0:01:27]} 44. Bc2 {[%emt 0:00:29]} Nxc2 {[%emt 0:00:24]} 45. Rxc2 {[%emt 0:00:09]} Rb1+ {[%emt 0:00:03]} 46. Kg2 {[%emt 0:00:07]} b4 {[%emt 0:00:42]} 47. Rc8+ {[%emt 0:00:06]} Kg7 {[%emt 0:00:15]} 48. Rc6 {[%emt 0:00:53]} b3 {[%emt 0:01:52]} 49. Rxd6 {[%emt 0:01:06]} b2 {[%emt 0:00:35]} 50. Rb6 {[%emt 0:00:16]} Be7 {[%emt 0:00:54]} 51. Rb3 {[%emt 0:01:21]} f5 {[%emt 0:00:36]} 52. Rb7 {[%emt 0:00:24]} Kf6 {[%emt 0:00:30]} 53. Kf3 {[%emt 0:00:25]} Rd1 {[%emt 0:00:39]} 54. Rxb2 {[%emt 0:00:51]} Rxd5 {[%emt 0:00:01]} 55. Ng3 {[%emt 0:01:12]} Kg5 56. Rb3 {[%emt 0:00:30]} e4+ {[%emt 0:01:19]} 57. Kg2 {[%emt 0:00:31]} Bd6 {[%emt 0:00:14]} 58. Ne2 {[%emt 0:00:52]} Rd2 {[%emt 0:00:19]} 59. Kf1 {[%emt 0:00:33]} f4 {[%emt 0:00:58]} 60. Nc3 {[%emt 0:00:20]} Rd4 {[%emt 0:00:27]} 61. Nb5 {[%emt 0:00:19]} Rb4 {[%emt 0:00:12]} 62. Rxb4 {[%emt 0:00:27]} Bxb4 63. Nd4 {[%emt 0:00:20]} Kg4 {[%emt 0:00:35]} 64. Nc6 {[%emt 0:00:31]} Bc3 {[%emt 0:00:13]} 65. Ke2 {[%emt 0:00:31]} Kh3 {[%emt 0:00:20]} 66. Ne7 {[%emt 0:00:10]} g5 {[%emt 0:00:16]} 67. Nd5 {[%emt 0:00:24]} Bd4 {[%emt 0:00:09]} 68. Ne7 {[%emt 0:00:23]} Kg2 {[%emt 0:00:17]} 69. Nf5 {[%emt 0:00:24]} f3+ {[%emt 0:00:35]} 70. Kd2 {[%emt 0:00:06]} Bxf2 {[%emt 0:00:13]} 0-1

[Event "EYCC G10-ch 2024"]
[Site "Prague"]
[Date "2024.08.24"]
[Round "3.3"]
[White "Tykalova, Barbora"]
[Black "Anistoroaei, Maria"]
[Result "1-0"]
[ECO "B40"]
[WhiteElo "1580"]
[BlackElo "1627"]
[Annotator "NA RC"]
[PlyCount "67"]
[EventDate "2024.08.19"]
[EventType "swiss"]
[EventCountry "CZE"]
[SourceTitle "playchess.com"]
[Source "ChessBase"]
[SourceQuality "1"]
[TimeControl "5400+30"]

1. e4 {[%emt 0:00:03]} c5 {[%emt 0:00:03]} 2. Nf3 {[%emt 0:00:05]} e6 {[%emt 0:00:04]} 3. b3 {[%emt 0:00:18]} a6 {[%emt 0:01:06]} 4. Bb2 {[%emt 0:00:08]} Nc6 {[%emt 0:03:29]} 5. a4 {[%emt 0:02:40]} d6 {[%emt 0:06:24]} 6. Be2 {[%emt 0:07:40]} Nf6 {[%emt 0:01:37]} 7. d3 {[%emt 0:00:09]} Be7 {[%emt 0:04:56]} 8. O-O {[%emt 0:01:39]} O-O {[%emt 0:00:26]} 9. e5 {[%emt 0:01:05]} dxe5 {[%emt 0:01:49]} 10. Nxe5 {[%emt 0:00:08]} Nd4 {[%emt 0:01:00]} 11. a5 {[%emt 0:07:15]} b6 {[%emt 0:41:34]} 12. Nd2 {[%emt 0:08:08]} Bb7 {[%emt 0:08:39]} 13. axb6 {[%emt 0:00:11]} Qxb6 {[%emt 0:02:47]} 14. Ndc4 {[%emt 0:00:09]} Qd8 {[%emt 0:01:13]} 15. Na5 {[%emt 0:01:37]} Qd5 {[%emt 0:04:34]} 16. Nxb7 {[%emt 0:04:18]} Qxe5 {[%emt 0:01:22]} 17. Bg4 {[%emt 0:02:59]} Rab8 {[%emt 0:05:21]} 18. Na5 {[%emt 0:00:31]} Bd6 {[%emt 0:01:40]} 19. f4 {[%emt 0:01:47]} Nf3+ {[%emt 0:05:08]} 20. Qxf3 {[%emt 0:02:05]} Qxb2 {[%emt 0:00:26]} 21. Nc4 {[%emt 0:01:59]} Qd4+ {[%emt 0:00:47]} 22. Kh1 {[%emt 0:00:26]} Bxf4 {[%emt 0:01:33]} 23. Bxe6 {[%emt 0:01:49]} Bxh2 {[%emt 0:01:52]} 24. Bh3 {[%emt 0:01:02]} Bc7 {[%emt 0:01:16]} 25. Rxa6 {[%emt 0:00:36]} Nd5 {[%emt 0:00:49]} 26. Ra4 {[%emt 0:00:52]} Nb4 {[%emt 0:01:25]} 27. Ra7 {[%emt 0:02:00]} Bd8 {[%emt 0:01:35]} 28. Rd7 {[%emt 0:00:47]} Qf6 {[%emt 0:00:35]} 29. Qe2 {[%emt 0:00:29]} Qg6 {[%emt 0:00:47]} 30. Ne5 {[%emt 0:00:18]} Qh6 {[%emt 0:00:35]} 31. Nxf7 {[%emt 0:00:34]} Qh4 {[%emt 0:00:24]} 32. Qe6 {[%emt 0:00:18]} h5 {[%emt 0:00:40]} 33. Ng5+ {[%emt 0:00:12]} Kh8 {[%emt 0:00:12]} 34. Rxf8# 1-0

[Event "EYCC G10-ch 2024"]
[Site "Prague"]
[Date "2024.08.24"]
[Round "3.4"]
[White "Stoica, Melina-Theodora"]
[Black "Aragonda, Sahasra"]
[Result "1-0"]
[ECO "A45"]
[WhiteElo "1576"]
[BlackElo "1617"]
[Annotator "NA RC"]
[PlyCount "67"]
[EventDate "2024.08.19"]
[EventType "swiss"]
[EventCountry "CZE"]
[SourceTitle "playchess.com"]
[Source "ChessBase"]
[SourceQuality "1"]
[TimeControl "5400+30"]

1. d4 {[%emt 0:00:02]} Nf6 {[%emt 0:00:20]} 2. Bf4 {[%emt 0:00:08]} e6 {[%emt 0:01:03]} 3. Nf3 {[%emt 0:03:05]} d5 {[%emt 0:00:57]} 4. e3 {[%emt 0:03:47]} Bd6 {[%emt 0:00:14]} 5. Bxd6 {[%emt 0:05:56]} Qxd6 {[%emt 0:00:13]} 6. Bd3 {[%emt 0:03:49]} O-O {[%emt 0:03:53]} 7. O-O {[%emt 0:03:36]} c5 {[%emt 0:01:21]} 8. c3 {[%emt 0:00:13]} c4 {[%emt 0:00:57]} 9. Bc2 {[%emt 0:08:16]} Nc6 {[%emt 0:03:11]} 10. Nbd2 {[%emt 0:08:17]} e5 {[%emt 0:02:10]} 11. dxe5 {[%emt 0:11:54]} Nxe5 {[%emt 0:00:43]} 12. Nxe5 {[%emt 0:00:16]} Qxe5 {[%emt 0:00:08]} 13. Nf3 {[%emt 0:00:08]} Qc7 {[%emt 0:05:04]} 14. Qd4 {[%emt 0:24:45]} Re8 {[%emt 0:10:08]} 15. Rfd1 {[%emt 0:10:10]} Bg4 {[%emt 0:02:33]} 16. Kh1 {[%emt 0:05:37]} Ne4 {[%emt 0:14:55]} 17. Rf1 {[%emt 0:01:51]} Rad8 {[%emt 0:04:29]} 18. Bd1 {[%emt 0:04:06]} Qe7 {[%emt 0:07:06]} 19. Nd2 {[%emt 0:01:20]} Bxd1 {[%emt 0:01:14]} 20. Raxd1 {[%emt 0:00:10]} Qh4 {[%emt 0:14:47]} 21. Nxe4 {[%emt 0:01:56]} dxe4 {[%emt 0:01:05]} 22. Qxc4 {[%emt 0:00:19]} Rxd1 {[%emt 0:01:38]} 23. Rxd1 {[%emt 0:00:09]} Qxf2 {[%emt 0:00:52]} 24. Rf1 {[%emt 0:00:09]} Qxf1+ {[%emt 0:01:36]} 25. Qxf1 {[%emt 0:00:05]} Rd8 {[%emt 0:00:09]} 26. h3 {[%emt 0:00:11]} Rd2 {[%emt 0:00:21]} 27. Qb5 {[%emt 0:00:15]} Kf8 {[%emt 0:00:15]} 28. Qxb7 {[%emt 0:00:09]} f5 {[%emt 0:00:15]} 29. Qc8+ {[%emt 0:00:18]} Ke7 {[%emt 0:00:25]} 30. Qxf5 {[%emt 0:00:08]} Rxb2 {[%emt 0:00:16]} 31. Qxe4+ {[%emt 0:00:06]} Kf6 {[%emt 0:00:12]} 32. Qd4+ {[%emt 0:00:07]} Kg5 {[%emt 0:00:12]} 33. Qxg7+ {[%emt 0:00:23]} Kh4 {[%emt 0:00:12]} 34. Qg4# {[%emt 0:00:08]} 1-0

[Event "EYCC G10-ch 2024"]
[Site "Prague"]
[Date "2024.08.24"]
[Round "3.5"]
[White "Bjerregaard Hagen, Frida"]
[Black "Bhaumik, Mehr"]
[Result "0-1"]
[ECO "A48"]
[WhiteElo "1556"]
[BlackElo "1606"]
[Annotator "NA RC"]
[PlyCount "98"]
[EventDate "2024.08.19"]
[EventType "swiss"]
[EventCountry "CZE"]
[SourceTitle "playchess.com"]
[Source "ChessBase"]
[SourceQuality "1"]
[TimeControl "5400+30"]

1. d4 {[%emt 0:00:02]} Nf6 {[%emt 0:00:18]} 2. Nf3 {[%emt 0:00:16]} g6 {[%emt 0:00:16]} 3. e3 {[%emt 0:00:24]} Bg7 {[%emt 0:00:16]} 4. Be2 {[%emt 0:00:21]} O-O {[%emt 0:00:17]} 5. O-O {[%emt 0:00:24]} d5 {[%emt 0:00:31]} 6. c4 {[%emt 0:01:42]} e6 {[%emt 0:06:29]} 7. Nc3 {[%emt 0:02:37]} b6 {[%emt 0:04:49]} 8. b4 {[%emt 0:03:15]} Bb7 {[%emt 0:06:53]} 9. a4 {[%emt 0:05:18]} Qe7 {[%emt 0:12:07]} 10. Ba3 {[%emt 0:02:48]} Re8 {[%emt 0:01:04]} 11. Qb3 {[%emt 0:01:31]} dxc4 {[%emt 0:03:47]} 12. Qxc4 {[%emt 0:01:47]} Nd5 {[%emt 0:02:29]} 13. Nxd5 {[%emt 0:02:14]} Bxd5 {[%emt 0:00:36]} 14. Qc2 {[%emt 0:02:01]} Rc8 {[%emt 0:09:31]} 15. Rac1 {[%emt 0:01:01]} a5 {[%emt 0:03:26]} 16. Rb1 {[%emt 0:01:53]} f5 {[%emt 0:01:43]} 17. Nd2 {[%emt 0:01:21]} axb4 {[%emt 0:07:48]} 18. Bxb4 {[%emt 0:01:16]} c5 {[%emt 0:01:24]} 19. dxc5 {[%emt 0:07:19]} bxc5 {[%emt 0:00:32]} 20. f3 {[%emt 0:04:47]} Nd7 {[%emt 0:04:29]} 21. Ba3 {[%emt 0:02:16]} Qg5 {[%emt 0:04:51]} 22. e4 {[%emt 0:05:25]} Qe3+ {[%emt 0:00:55]} 23. Rf2 {[%emt 0:00:30]} Bd4 {[%emt 0:03:30]} 24. Rbf1 {[%emt 0:01:14]} Qxe2 {[%emt 0:06:27]} 25. exd5 {[%emt 0:01:11]} Bxf2+ {[%emt 0:00:14]} 26. Rxf2 {[%emt 0:00:11]} Qe1+ {[%emt 0:00:13]} 27. Rf1 {[%emt 0:00:32]} Qe3+ {[%emt 0:00:07]} 28. Rf2 {[%emt 0:01:13]} Qxa3 {[%emt 0:00:38]} 29. dxe6 {[%emt 0:00:33]} Nf6 {[%emt 0:01:07]} 30. Nc4 {[%emt 0:00:51]} Qa1+ {[%emt 0:00:50]} 31. Rf1 {[%emt 0:00:09]} Qd4+ {[%emt 0:00:05]} 32. Kh1 {[%emt 0:00:14]} Re8 {[%emt 0:01:43]} 33. Re1 {[%emt 0:01:33]} Rxe6 {[%emt 0:02:16]} 34. Rd1 {[%emt 0:01:24]} Rae8 {[%emt 0:01:11]} 35. h3 {[%emt 0:01:47]} Qf4 {[%emt 0:01:12]} 36. Nd2 {[%emt 0:01:11]} Re1+ {[%emt 0:00:20]} 37. Nf1 {[%emt 0:00:15]} Rxd1 {[%emt 0:00:44]} 38. Qxd1 {[%emt 0:00:10]} Qd4 {[%emt 0:00:07]} 39. Qb3+ {[%emt 0:00:53]} c4 {[%emt 0:01:19]} 40. Qb1 {[%emt 0:00:26]} Qd3 {[%emt 0:00:19]} 41. Qc1 {[%emt 0:00:24]} c3 {[%emt 0:00:18]} 42. a5 {[%emt 0:00:16]} c2 {[%emt 0:00:13]} 43. Kh2 {[%emt 0:00:25]} Qd1 {[%emt 0:00:40]} 44. Qxd1 cxd1=Q {[%emt 0:00:18]} 45. a6 {[%emt 0:00:38]} Qxf1 {[%emt 0:00:20]} 46. a7 {[%emt 0:00:08]} Nh5 {[%emt 0:00:30]} 47. a8=Q {[%emt 0:00:13]} Rxa8 {[%emt 0:00:18]} 48. h4 {[%emt 0:00:11]} Ra2 {[%emt 0:00:12]} 49. Kh3 {[%emt 0:00:22]} Qxg2# {[%emt 0:00:15]} 0-1

[Event "EYCC G10-ch 2024"]
[Site "Prague"]
[Date "2024.08.24"]
[Round "3.6"]
[White "Horodna, Anna"]
[Black "Malcheva, Niya"]
[Result "1-0"]
[ECO "B12"]
[WhiteElo "1603"]
[BlackElo "1551"]
[Annotator "NA RC"]
[PlyCount "93"]
[EventDate "2024.08.19"]
[EventType "swiss"]
[EventCountry "CZE"]
[SourceTitle "playchess.com"]
[Source "ChessBase"]
[SourceQuality "1"]
[TimeControl "5400+30"]

1. e4 {[%emt 0:00:04]} c6 {[%emt 0:00:04]} 2. d4 {[%emt 0:00:16]} d5 {[%emt 0:00:16]} 3. e5 {[%emt 0:00:28]} Bf5 {[%emt 0:00:09]} 4. Nf3 {[%emt 0:00:49]} e6 {[%emt 0:01:47]} 5. Be2 {[%emt 0:00:37]} Nd7 {[%emt 0:01:52]} 6. O-O {[%emt 0:01:31]} c5 {[%emt 0:00:32]} 7. c4 {[%emt 0:00:46]} dxc4 {[%emt 0:01:25]} 8. Na3 {[%emt 0:00:36]} cxd4 {[%emt 0:01:31]} 9. Nxc4 {[%emt 0:06:36]} d3 {[%emt 0:04:07]} 10. Bxd3 {[%emt 0:03:39]} Bxd3 {[%emt 0:00:10]} 11. Qxd3 {[%emt 0:00:16]} Nc5 {[%emt 0:00:28]} 12. Qe2 {[%emt 0:09:44]} Qd3 {[%emt 0:01:59]} 13. Qxd3 {[%emt 0:06:52]} Nxd3 {[%emt 0:00:08]} 14. Nd4 {[%emt 0:01:21]} Rc8 {[%emt 0:03:37]} 15. b3 {[%emt 0:01:05]} a6 {[%emt 0:00:21]} 16. a4 {[%emt 0:06:23]} Bc5 {[%emt 0:09:04]} 17. Ba3 {[%emt 0:10:16]} Nh6 {[%emt 0:07:14]} 18. Bxc5 {[%emt 0:08:03]} Rxc5 {[%emt 0:00:07]} 19. f4 {[%emt 0:00:41]} Rd5 {[%emt 0:03:20]} 20. Nf3 {[%emt 0:02:56]} f6 {[%emt 0:04:30]} 21. g3 {[%emt 0:05:45]} Nf7 {[%emt 0:02:45]} 22. Rad1 {[%emt 0:02:05]} Ke7 {[%emt 0:00:15]} 23. Nb6 {[%emt 0:03:58]} Rdd8 {[%emt 0:02:12]} 24. Nc4 {[%emt 0:01:45]} Nc5 {[%emt 0:04:50]} 25. exf6+ {[%emt 0:03:09]} gxf6 {[%emt 0:01:25]} 26. Nd4 {[%emt 0:00:56]} Nd6 {[%emt 0:03:40]} 27. Nxd6 {[%emt 0:01:58]} Rxd6 28. Rfe1 {[%emt 0:01:42]} Rd5 {[%emt 0:04:04]} 29. g4 {[%emt 0:02:23]} Rhd8 {[%emt 0:00:05]} 30. Nf5+ {[%emt 0:01:11]} Kf7 {[%emt 0:01:22]} 31. Rxd5 {[%emt 0:01:12]} Rxd5 {[%emt 0:00:11]} 32. Ne3 {[%emt 0:01:12]} Rd4 {[%emt 0:01:06]} 33. Rc1 {[%emt 0:01:01]} b6 {[%emt 0:00:41]} 34. a5 {[%emt 0:01:10]} Nxb3 {[%emt 0:00:33]} 35. Rc7+ {[%emt 0:00:44]} Kg6 {[%emt 0:00:31]} 36. f5+ {[%emt 0:00:55]} exf5 {[%emt 0:00:36]} 37. gxf5+ {[%emt 0:00:05]} Kg5 {[%emt 0:00:08]} 38. axb6 {[%emt 0:01:37]} Rb4 {[%emt 0:00:29]} 39. Rxh7 {[%emt 0:01:55]} Rxb6 {[%emt 0:01:24]} 40. h4+ {[%emt 0:00:11]} Kf4 {[%emt 0:00:16]} 41. Nd5+ {[%emt 0:00:13]} Kxf5 {[%emt 0:00:12]} 42. Nxb6 {[%emt 0:00:09]} a5 {[%emt 0:00:22]} 43. Rg7 {[%emt 0:00:26]} Nd4 {[%emt 0:00:15]} 44. h5 {[%emt 0:00:40]} Ne6 {[%emt 0:01:02]} 45. h6 {[%emt 0:00:14]} Ke4 {[%emt 0:00:11]} 46. Re7 {[%emt 0:00:20]} Kf5 {[%emt 0:00:04]} 47. h7 {[%emt 0:00:30]} 1-0

[Event "EYCC G10-ch 2024"]
[Site "Prague"]
[Date "2024.08.24"]
[Round "3.7"]
[White "Vadkerti, Anna"]
[Black "Paunescu, Aida"]
[Result "1/2-1/2"]
[ECO "B13"]
[WhiteElo "1517"]
[BlackElo "1603"]
[Annotator "NA RC"]
[PlyCount "44"]
[EventDate "2024.08.19"]
[EventType "swiss"]
[EventCountry "CZE"]
[SourceTitle "playchess.com"]
[Source "ChessBase"]
[SourceQuality "1"]
[TimeControl "5400+30"]

1. e4 {[%emt 0:00:03]} c6 {[%emt 0:00:10]} 2. d4 {[%emt 0:00:07]} d5 {[%emt 0:00:16]} 3. exd5 {[%emt 0:00:10]} cxd5 {[%emt 0:00:20]} 4. Bd3 {[%emt 0:00:20]} Nc6 {[%emt 0:00:58]} 5. c3 {[%emt 0:00:20]} Nf6 {[%emt 0:01:22]} 6. Nf3 {[%emt 0:00:39]} Bg4 {[%emt 0:02:44]} 7. h3 {[%emt 0:01:19]} Bh5 {[%emt 0:01:36]} 8. Bf4 {[%emt 0:01:47]} e6 {[%emt 0:01:50]} 9. O-O {[%emt 0:01:00]} Bd6 {[%emt 0:01:53]} 10. Bxd6 {[%emt 0:03:20]} Qxd6 {[%emt 0:00:25]} 11. Nbd2 {[%emt 0:01:38]} O-O {[%emt 0:02:56]} 12. Bb5 {[%emt 0:06:51]} a6 {[%emt 0:11:11]} 13. Bxc6 {[%emt 0:02:19]} bxc6 {[%emt 0:00:54]} 14. Qc2 {[%emt 0:13:00]} Bg6 {[%emt 0:03:36]} 15. Qa4 {[%emt 0:02:38]} Rfb8 {[%emt 0:15:49]} 16. b4 {[%emt 0:04:21]} h6 {[%emt 0:04:39]} 17. Ne5 {[%emt 0:01:29]} Rb6 {[%emt 0:07:43]} 18. Nxg6 {[%emt 0:00:54]} fxg6 {[%emt 0:00:11]} 19. Rfe1 {[%emt 0:01:25]} Nd7 {[%emt 0:04:56]} 20. Re2 {[%emt 0:04:10]} Rf8 {[%emt 0:02:08]} 21. Rae1 {[%emt 0:02:01]} Rf6 {[%emt 0:01:24]} 22. a3 {[%emt 0:00:54]} Qf4 1/2-1/2

[Event "EYCC G10-ch 2024"]
[Site "Prague"]
[Date "2024.08.24"]
[Round "3.8"]
[White "Nguyen Doan, Bao Anh Angelina"]
[Black "Rzadkowska, Lila"]
[Result "1/2-1/2"]
[ECO "B46"]
[WhiteElo "1659"]
[BlackElo "1794"]
[Annotator "NA RC"]
[PlyCount "148"]
[EventDate "2024.08.19"]
[EventType "swiss"]
[EventCountry "CZE"]
[SourceTitle "playchess.com"]
[Source "ChessBase"]
[SourceQuality "1"]
[TimeControl "5400+30"]

1. e4 {[%emt 0:00:01]} c5 {[%emt 0:00:07]} 2. Nf3 {[%emt 0:00:15]} e6 {[%emt 0:00:08]} 3. d4 {[%emt 0:00:08]} cxd4 {[%emt 0:00:06]} 4. Nxd4 {[%emt 0:00:04]} Nc6 {[%emt 0:00:07]} 5. Nc3 {[%emt 0:00:22]} a6 {[%emt 0:00:06]} 6. f4 {[%emt 0:01:31]} Bc5 {[%emt 0:13:52]} 7. Nxc6 {[%emt 0:05:57]} bxc6 {[%emt 0:01:50]} 8. Bd3 {[%emt 0:03:41]} Ne7 {[%emt 0:04:05]} 9. Qe2 {[%emt 0:03:45]} O-O {[%emt 0:13:33]} 10. Be3 {[%emt 0:08:45]} Bxe3 {[%emt 0:00:25]} 11. Qxe3 {[%emt 0:00:12]} d5 {[%emt 0:00:33]} 12. Qf2 {[%emt 0:01:34]} Ng6 {[%emt 0:05:41]} 13. O-O {[%emt 0:02:49]} Rb8 {[%emt 0:09:35]} 14. Na4 {[%emt 0:05:39]} e5 {[%emt 0:06:24]} 15. fxe5 {[%emt 0:07:56]} Nxe5 {[%emt 0:00:15]} 16. exd5 {[%emt 0:03:17]} Nxd3 {[%emt 0:04:35]} 17. cxd3 {[%emt 0:00:10]} cxd5 {[%emt 0:02:02]} 18. d4 {[%emt 0:01:24]} Be6 {[%emt 0:04:18]} 19. Rac1 {[%emt 0:03:27]} Qa5 {[%emt 0:03:52]} 20. b3 {[%emt 0:03:12]} Rbc8 {[%emt 0:03:56]} 21. Nc5 {[%emt 0:03:10]} Qb5 {[%emt 0:03:56]} 22. a4 {[%emt 0:03:05]} Qb6 {[%emt 0:01:15]} 23. Rce1 {[%emt 0:01:53]} Rce8 {[%emt 0:05:48]} 24. h3 {[%emt 0:09:45]} a5 {[%emt 0:01:23]} 25. Qd2 {[%emt 0:08:32]} h6 {[%emt 0:02:15]} 26. Rb1 {[%emt 0:02:41]} Rb8 {[%emt 0:01:00]} 27. Rbe1 {[%emt 0:01:38]} Rbe8 {[%emt 0:00:12]} 28. Re3 {[%emt 0:02:30]} Bc8 {[%emt 0:02:50]} 29. Rxe8 {[%emt 0:02:28]} Rxe8 {[%emt 0:00:04]} 30. Re1 {[%emt 0:00:37]} Rxe1+ {[%emt 0:01:33]} 31. Qxe1 {[%emt 0:00:04]} Be6 {[%emt 0:00:19]} 32. Qc3 {[%emt 0:01:29]} Kf8 {[%emt 0:02:18]} 33. Qg3 {[%emt 0:01:11]} Kg8 {[%emt 0:01:24]} 34. Qd3 {[%emt 0:01:48]} Qb4 {[%emt 0:01:41]} 35. Kf2 {[%emt 0:00:45]} Kf8 {[%emt 0:00:30]} 36. Ke2 {[%emt 0:00:44]} Ke7 {[%emt 0:00:29]} 37. Qd2 {[%emt 0:01:53]} Qb6 {[%emt 0:00:25]} 38. Qc3 {[%emt 0:01:16]} Bc8 {[%emt 0:01:27]} 39. Qg3 {[%emt 0:01:50]} Kf8 {[%emt 0:03:43]} 40. Qh4 {[%emt 0:03:40]} Be6 {[%emt 0:00:55]} 41. Qe1 {[%emt 0:00:57]} Kg8 {[%emt 0:00:09]} 42. Qc3 {[%emt 0:00:15]} Bc8 {[%emt 0:00:09]} 43. g4 {[%emt 0:01:28]} Kh8 {[%emt 0:00:20]} 44. Qe3 {[%emt 0:00:34]} Be6 {[%emt 0:00:02]} 45. g5 {[%emt 0:00:24]} hxg5 {[%emt 0:00:05]} 46. Qxg5 {[%emt 0:00:03]} Kg8 {[%emt 0:00:10]} 47. Qe3 {[%emt 0:00:51]} Kh8 {[%emt 0:00:13]} 48. h4 {[%emt 0:00:22]} Kg8 {[%emt 0:01:00]} 49. Kf2 {[%emt 0:00:28]} Qd6 {[%emt 0:00:50]} 50. Kg2 {[%emt 0:00:15]} g6 {[%emt 0:01:15]} 51. Qh6 {[%emt 0:01:28]} Bf5 {[%emt 0:01:14]} 52. Qg5 {[%emt 0:01:14]} Kh7 {[%emt 0:01:13]} 53. h5 {[%emt 0:00:13]} Qf8 {[%emt 0:00:14]} 54. hxg6+ {[%emt 0:00:28]} fxg6 {[%emt 0:00:05]} 55. Qh4+ {[%emt 0:00:36]} Kg7 {[%emt 0:00:05]} 56. Qf4 {[%emt 0:00:40]} Be4+ {[%emt 0:01:24]} 57. Kg3 {[%emt 0:00:23]} Qxf4+ {[%emt 0:00:03]} 58. Kxf4 {[%emt 0:00:07]} Bc2 {[%emt 0:00:07]} 59. b4 {[%emt 0:01:31]} Bxa4 {[%emt 0:01:16]} 60. Nxa4 {[%emt 0:00:20]} axb4 {[%emt 0:00:05]} 61. Ke5 {[%emt 0:00:25]} g5 {[%emt 0:00:13]} 62. Kxd5 {[%emt 0:00:17]} g4 {[%emt 0:00:05]} 63. Ke4 {[%emt 0:00:05]} Kf6 {[%emt 0:00:07]} 64. Nc5 {[%emt 0:00:44]} Ke7 {[%emt 0:00:44]} 65. Kf4 {[%emt 0:00:34]} Kd6 {[%emt 0:00:04]} 66. Kxg4 {[%emt 0:00:12]} Kd5 {[%emt 0:00:01]} 67. Nb3 {[%emt 0:00:21]} Kc4 {[%emt 0:00:06]} 68. Kf4 {[%emt 0:00:26]} Kxb3 {[%emt 0:00:04]} 69. d5 {[%emt 0:00:04]} Ka2 {[%emt 0:00:21]} 70. d6 {[%emt 0:00:07]} b3 {[%emt 0:00:03]} 71. d7 {[%emt 0:00:06]} b2 {[%emt 0:00:03]} 72. d8=Q {[%emt 0:00:07]} b1=Q {[%emt 0:00:05]} 73. Qa5+ {[%emt 0:00:15]} Kb2 {[%emt 0:00:11]} 74. Qe5+ {[%emt 0:00:23]} Ka2 {[%emt 0:00:11]} 1/2-1/2